fUST/lending_fUST_20240902
["ID","MTS","AMOUNT","RATE_DAILY","PERIOD"]
[336849466,1725209475263,-500.0,0.00025205,2]
[336849467,1725209475272,-500.0,0.00025205,2]
[336849468,1725209475281,-94.01169063,0.00025205,2]
[336849469,1725209475395,-1148.944144,0.00025205,2]
[336849470,1725209475407,-716.85416537,0.00025205,2]
[336849471,1725209475419,-1265.99,0.00025205,2]
[336849472,1725209475430,-1995.67,0.00025205,2]
[336849473,1725209475439,-674.22,0.00025205,2]
[336849474,1725209475450,-500.0,0.00025205,2]
[336849475,1725209475462,-4112.56,0.00025205,2]
[336849476,1725209475471,-500.0,0.00025205,2]
[336849477,1725209475482,-500.0,0.00025205,2]
[336849478,1725209475492,-1641.37,0.00025205,2]
[336849479,1725209475502,-1957.88,0.00025205,2]
[336849480,1725209475512,-500.0,0.00025205,2]
[336849481,1725209475522,-500.0,0.00025205,2]
[336849482,1725209475533,-2698.02,0.00025205,2]
[336849483,1725209475543,-591.74,0.00025205,2]
[336849484,1725209475553,-500.0,0.00025205,2]
[336849485,1725209475562,-500.0,0.00025205,2]
[336849486,1725209475571,-1669.77,0.00025205,2]
[336849487,1725209475581,-904.8,0.00025205,2]
[336849488,1725209475594,-1392.03,0.00025205,2]
[336849489,1725209475603,-1836.43,0.00025205,2]
[336849490,1725209475614,-577.58,0.00025205,2]
[336849491,1725209475626,-618.15,0.00025205,2]
[336849492,1725209475637,-517.98,0.00025205,2]
[336849493,1725209475648,-500.0,0.00025205,2]
[336849494,1725209475657,-1311.07,0.00025205,2]
[336849495,1725209475667,-500.0,0.00025205,2]
[336849496,1725209475677,-1499.9,0.00025205,2]
[336849497,1725209475685,-500.0,0.00025273,2]
[336849498,1725209475695,-500.0,0.00025273,2]
[336849499,1725209475704,-350.26928938,0.00025273,2]
[336849500,1725209475714,-500.0,0.00025273,2]
[336849501,1725209475726,-500.0,0.00025273,2]
[336849502,1725209475738,-1828.73111963,0.00025385,2]
[336849503,1725209475750,-25527.8349845,0.00025458,3]
[336849504,1725209475761,-500.0,0.00025468,2]
[336849505,1725209475770,-500.0,0.00025468,2]
[336849506,1725209475779,-726.88,0.00025468,2]
[336849507,1725209475788,-679.29,0.00025468,2]
[336849508,1725209475798,-1476.5,0.00025468,2]
[336849509,1725209475807,-150.0,0.00025473,2]
[336849510,1725209475816,-500.0,0.00025479,2]
[336849511,1725209475827,-500.0,0.00025479,2]
[336849512,1725209475837,-500.0,0.00025479,2]
[336849513,1725209475846,-500.0,0.00025479,2]
[336849514,1725209475855,-509.67906271,0.00025479,2]
[336849515,1725209475864,-506.86396047,0.00025479,2]
[336849516,1725209475874,-800.72,0.00025479,2]
[336849517,1725209475883,-500.0,0.00025479,2]
[336849518,1725209475892,-500.0,0.00025479,2]
[336849519,1725209475901,-500.0,0.00025479,2]
[336849520,1725209475911,-520.45,0.00025479,2]
[336849521,1725209475920,-500.0,0.00025479,2]
[336849522,1725209475929,-500.0,0.00025479,2]
[336849523,1725209475940,-500.0,0.00025479,2]
[336849524,1725209475950,-500.0,0.00025479,2]
[336849525,1725209475960,-500.0,0.00025479,2]
[336849526,1725209475969,-500.0,0.00025479,2]
[336849527,1725209475978,-500.0,0.00025479,2]
[336849528,1725209475987,-500.0,0.00025479,2]
[336849529,1725209475996,-500.0,0.00025479,2]
[336849530,1725209476006,-500.0,0.00025479,2]
[336849531,1725209476015,-587.86,0.00025479,2]
[336849532,1725209476023,-500.0,0.00025479,2]
[336849533,1725209476033,-620.9,0.00025479,2]
[336849534,1725209476041,-500.0,0.00025479,2]
[336849535,1725209476050,-501.04238566,0.00025479,2]
[336849536,1725209476060,-500.0,0.00025479,2]
[336849537,1725209476069,-500.0,0.00025479,2]
[336849538,1725209476078,-500.0,0.00025479,2]
[336849539,1725209476088,-506.84438037,0.00025479,2]
[336849540,1725209476098,-506.4085577,0.00025479,2]
[336849541,1725209476107,-500.0,0.00025479,2]
[336849542,1725209476116,-500.0,0.00025479,2]
[336849543,1725209476125,-532.99,0.00025479,2]
[336849544,1725209476134,-530.45,0.00025479,2]
[336849545,1725209476144,-560.7,0.00025479,2]
[336849546,1725209476153,-509.10237185,0.00025479,2]
[336849547,1725209476163,-500.0,0.00025479,2]
[336849548,1725209476172,-500.0,0.00025479,2]
[336849549,1725209476181,-500.0,0.00025479,2]
[336849550,1725209476190,-391.05981609,0.00025479,2]
[336849551,1725209476199,-500.0,0.00025479,2]
[336849552,1725209476210,-500.0,0.00025479,2]
[336849553,1725209476220,-500.0,0.00025479,2]
[336849554,1725209476229,-500.0,0.00025479,2]
[336849555,1725209476238,-500.0,0.00025479,2]
[336849556,1725209476248,-500.0,0.00025479,2]
[336849557,1725209476257,-1059.37,0.00025479,2]
[336849558,1725209476266,-870.63,0.00025479,2]
[336849559,1725209476275,-500.0,0.00025479,2]
[336849560,1725209476286,-798.55,0.00025479,2]
[336849561,1725209476296,-690.52,0.00025479,2]
[336849562,1725209476305,-500.0,0.00025479,2]
[336849563,1725209476317,-500.0,0.00025479,2]
[336849564,1725209476327,-500.0,0.00025479,2]
[336849565,1725209476337,-532.53088224,0.00025479,2]
[336849566,1725209476346,-500.0,0.00025479,2]
[336849567,1725209476355,-1159.54,0.00025479,2]
[336849568,1725209476364,-500.0,0.00025479,2]
[336849569,1725209476374,-500.0,0.00025479,2]
[336849570,1725209476383,-500.0,0.00025479,2]
[336849571,1725209476392,-500.0,0.00025479,2]
[336849572,1725209476401,-500.0,0.00025479,2]
[336849573,1725209476410,-500.0,0.00025479,2]
[336849574,1725209476419,-500.0,0.00025479,2]
[336849575,1725209476428,-500.0,0.00025479,2]
[336849576,1725209476437,-512.69929887,0.00025479,2]
[336849577,1725209476447,-500.0,0.00025479,2]
[336849578,1725209476554,-500.0,0.00025479,2]
[336849579,1725209476565,-500.0,0.00025479,2]
[336849580,1725209476574,-500.0,0.00025479,2]
[336849581,1725209476583,-500.0,0.00025479,2]
[336849582,1725209476598,-500.0,0.00025479,2]
[336849583,1725209476607,-500.0,0.00025479,2]
[336849584,1725209476616,-501.67762093,0.00025479,2]
[336849585,1725209476625,-500.0,0.00025479,2]
[336849586,1725209476635,-500.0,0.00025479,2]
[336849587,1725209476644,-500.0,0.00025479,2]
[336849588,1725209476655,-500.0,0.00025479,2]
[336849589,1725209476667,-500.0,0.00025479,2]
[336849590,1725209476677,-500.0,0.00025479,2]
[336849591,1725209476686,-3572.54,0.00025479,2]
[336849592,1725209476695,-500.0,0.00025479,2]
[336849593,1725209476703,-500.0,0.00025479,2]
[336849594,1725209476714,-381.7653579,0.00025479,2]
[336849595,1725209476723,-500.0,0.00025479,2]
[336849596,1725209476732,-500.0,0.00025479,2]
[336849597,1725209476741,-500.0,0.00025479,2]
[336849598,1725209476750,-500.0,0.00025479,2]
[336849599,1725209476759,-500.0,0.00025479,2]
[336849600,1725209476769,-500.0,0.00025479,2]
[336849601,1725209476777,-500.0,0.00025479,2]
[336849602,1725209476787,-500.0,0.00025479,2]
[336849603,1725209476796,-500.0,0.00025479,2]
[336849604,1725209476805,-1297.92,0.00025479,2]
[336849605,1725209476814,-500.0,0.00025479,2]
[336849606,1725209476823,-500.0,0.00025479,2]
[336849607,1725209476832,-500.0,0.00025479,2]
[336849608,1725209476841,-500.0,0.00025479,2]
[336849609,1725209476850,-699.51,0.00025479,2]
[336849610,1725209476860,-500.0,0.00025479,2]
[336849611,1725209476869,-641.15,0.00025479,2]
[336849612,1725209476878,-500.0,0.00025479,2]
[336849613,1725209476887,-673.47,0.00025479,2]
[336849614,1725209476897,-500.0,0.00025479,2]
[336849615,1725209476907,-500.0,0.00025479,2]
[336849616,1725209476916,-683.17,0.00025479,2]
[336849617,1725209476925,-500.0,0.00025479,2]
[336849618,1725209476934,-500.0,0.00025479,2]
[336849619,1725209476944,-500.0,0.00025479,2]
[336849620,1725209476954,-500.0,0.00025479,2]
[336849621,1725209476966,-500.0,0.00025479,2]
[336849622,1725209476982,-500.0,0.00025479,2]
[336849623,1725209476991,-500.0,0.00025479,2]
[336849624,1725209477000,-500.0,0.00025479,2]
[336849625,1725209477009,-500.0,0.00025479,2]
[336849626,1725209477018,-500.0,0.00025479,2]
[336849627,1725209477027,-500.0,0.00025479,2]
[336849628,1725209477037,-500.0,0.00025479,2]
[336849629,1725209477047,-500.0,0.00025479,2]
[336849630,1725209477056,-500.0,0.00025479,2]
[336849631,1725209477065,-500.0,0.00025479,2]
[336849632,1725209477074,-500.0,0.00025479,2]
[336849633,1725209477083,-175.87,0.00025479,2]
[336849634,1725209477092,-500.0,0.00025479,2]
[336849635,1725209477102,-500.0,0.00025479,2]
[336849636,1725209477111,-500.0,0.00025479,2]
[336849637,1725209477120,-362.30924927,0.00025479,2]
[336849638,1725209477130,-500.0,0.00025479,2]
[336849639,1725209477139,-500.0,0.00025479,2]
[336849640,1725209477148,-500.0,0.00025479,2]
[336849641,1725209477157,-500.0,0.00025479,2]
[336849642,1725209477166,-500.0,0.00025479,2]
[336849643,1725209477175,-509.28,0.00025479,2]
[336849644,1725209477184,-172.50617321,0.00025479,2]
[336849645,1725209477194,-500.0,0.00025479,2]
[336849646,1725209477203,-1359.54,0.00025479,2]
[336849647,1725209477216,-500.0,0.00025479,2]
[336849648,1725209477225,-500.0,0.00025479,2]
[336849649,1725209477234,-500.0,0.00025479,2]
[336849650,1725209477243,-1091.17,0.00025479,2]
[336849651,1725209477252,-503.20622264,0.00025479,2]
[336849652,1725209477261,-214.56284989,0.00025479,2]
[336849653,1725209477271,-500.0,0.00025479,2]
[336849654,1725209477280,-743.08,0.00025479,2]
[336849655,1725209477289,-500.0,0.00025479,2]
[336849656,1725209477298,-2016.78,0.00025479,2]
[336849657,1725209477307,-500.0,0.00025479,2]
[336849658,1725209477317,-681.24,0.00025479,2]
[336849659,1725209477326,-500.0,0.00025479,2]
[336849660,1725209477336,-826.41,0.00025479,2]
[336849661,1725209477345,-500.0,0.00025479,2]
[336849662,1725209477354,-500.0,0.00025479,2]
[336849663,1725209477364,-500.0,0.00025479,2]
[336849664,1725209477373,-887.01,0.00025479,2]
[336849665,1725209477381,-4.5350329,0.00025479,2]
[336849666,1725209477398,-495.4649671,0.00025479,2]
[336849667,1725209477407,-500.0,0.00025479,2]
[336849668,1725209477416,-204.46864194,0.00025479,2]
[336849669,1725209477677,-500.0,0.00024657,2]
[336849670,1725209477687,-587.5167475,0.00024931,2]
[336849671,1725209477697,-1175.83135806,0.00025479,2]
[336849672,1725209477707,-500.0,0.00025479,2]
[336849673,1725209477718,-500.0,0.00025479,2]
[336849674,1725209477727,-500.0,0.00025479,2]
[336849675,1725209477736,-2127.0,0.00025479,2]
[336849676,1725209477746,-500.0,0.00025479,2]
[336849677,1725209477755,-500.0,0.00025479,2]
[336849678,1725209477764,-305.40257718,0.00025479,2]
[336849679,1725209477773,-500.0,0.00025479,2]
[336849680,1725209477782,-500.0,0.00025479,2]
[336849681,1725209477791,-500.0,0.00025479,2]
[336849682,1725209477800,-1009.87,0.00025479,2]
[336849683,1725209477809,-500.0,0.00025479,2]
[336849684,1725209477819,-500.0,0.00025479,2]
[336849685,1725209477828,-500.0,0.00025479,2]
[336849686,1725209477837,-500.0,0.00025479,2]
[336849687,1725209477846,-500.0,0.00025479,2]
[336849688,1725209477855,-214.75626322,0.00025479,2]
[336849689,1725209477870,-500.0,0.00025479,2]
[336849690,1725209477888,-525.49,0.00025479,2]
[336849691,1725209477898,-500.0,0.00025479,2]
[336849692,1725209477907,-500.0,0.00025479,2]
[336849693,1725209477917,-514.99927391,0.00025479,2]
[336849694,1725209477928,-933.95,0.00025479,2]
[336849695,1725209477939,-500.0,0.00025479,2]
[336849696,1725209477949,-500.0,0.00025479,2]
[336849697,1725209477960,-500.0,0.00025479,2]
[336849698,1725209477969,-500.0,0.00025479,2]
[336849699,1725209477978,-500.0,0.00025479,2]
[336849700,1725209477987,-636.14,0.00025479,2]
[336849701,1725209477996,-500.0,0.00025479,2]
[336849702,1725209478006,-500.0,0.00025479,2]
[336849703,1725209478016,-500.0,0.00025479,2]
[336849704,1725209478026,-1856.5,0.00025479,2]
[336849705,1725209478035,-500.0,0.00025479,2]
[336849706,1725209478044,-1379.91,0.00025479,2]
[336849707,1725209478054,-966.72,0.00025479,2]
[336849708,1725209478064,-504.48033631,0.00025479,2]
[336849709,1725209478073,-643.02,0.00025479,2]
[336849710,1725209478082,-500.0,0.00025479,2]
[336849711,1725209478091,-500.0,0.00025479,2]
[336849712,1725209478101,-1807.05,0.00025479,2]
[336849713,1725209478110,-500.0,0.00025479,2]
[336849714,1725209478119,-500.0,0.00025479,2]
[336849715,1725209478129,-500.0,0.00025479,2]
[336849716,1725209478138,-504.25,0.00025479,2]
[336849717,1725209478147,-500.0,0.00025479,2]
[336849718,1725209478156,-500.0,0.00025479,2]
[336849719,1725209478166,-690.86,0.00025479,2]
[336849720,1725209478175,-394.65511845,0.00025479,2]
[336849721,1725209478184,-500.0,0.00025479,2]
[336849722,1725209478193,-580.39382741,0.00025479,2]
[336849723,1725209478202,-203.88133382,0.00025479,2]
[336849724,1725209478213,-500.0,0.00025479,2]
[336849725,1725209478223,-500.0,0.00025479,2]
[336849726,1725209478233,-500.0,0.00025479,2]
[336849727,1725209478242,-445.34900436,0.00025479,2]
[336849728,1725209478251,-562.12071904,0.00025479,2]
[336849729,1725209478261,-1794.98,0.00025479,2]
[336849730,1725209478270,-500.0,0.00025479,2]
[336849731,1725209478385,-500.0,0.00025479,2]
[336849732,1725209478395,-532.71,0.00025479,2]
[336849733,1725209478404,-500.0,0.00025479,2]
[336849734,1725209478413,-500.0,0.00025479,2]
[336849735,1725209478423,-557.48951493,0.00025479,2]
[336849736,1725209478433,-228.00972099,0.00025479,2]
[336849737,1725209478442,-3446.01,0.00025479,2]
[336849738,1725209478451,-2739.85,0.00025479,2]
[336849739,1725209478461,-707.09,0.00025479,2]
[336849740,1725209478470,-1637.46,0.00025479,2]
[336849741,1725209478480,-500.0,0.00025479,2]
[336849742,1725209478490,-500.0,0.00025479,2]
[336849743,1725209478499,-525.90832336,0.00025479,2]
[336849744,1725209478509,-500.0,0.00025479,2]
[336849745,1725209478519,-500.0,0.00025479,2]
[336849746,1725209478528,-1022.52,0.00025479,2]
[336849747,1725209478538,-687.73,0.00025479,2]
[336849748,1725209478547,-787.17,0.00025479,2]
[336849749,1725209478558,-500.0,0.00025479,2]
[336849750,1725209478567,-500.0,0.00025479,2]
[336849751,1725209478576,-500.0,0.00025479,2]
[336849752,1725209478586,-500.0,0.00025479,2]
[336849753,1725209478599,-500.0,0.00025479,2]
[336849754,1725209478609,-500.0,0.00025479,2]
[336849755,1725209478620,-838.81,0.00025479,2]
[336849756,1725209478635,-500.0,0.00025479,2]
[336849757,1725209478645,-500.0,0.00025479,2]
[336849758,1725209478654,-2630.39,0.00025479,2]
[336849759,1725209478664,-1530.5,0.00025479,2]
[336849760,1725209478675,-628.82,0.00025479,2]
[336849761,1725209478685,-2233.56,0.00025479,2]
[336849762,1725209478695,-500.0,0.00025479,2]
[336849763,1725209478704,-500.0,0.00025479,2]
[336849764,1725209478714,-500.0,0.00025479,2]
[336849765,1725209478723,-667.06,0.00025479,2]
[336849766,1725209478732,-500.0,0.00025479,2]
[336849767,1725209478741,-1394.08,0.00025479,2]
[336849768,1725209478751,-851.66,0.00025479,2]
[336849769,1725209478761,-500.0,0.00025479,2]
[336849770,1725209478770,-1649.78,0.00025479,2]
[336849771,1725209478780,-500.0,0.00025479,2]
[336849772,1725209478790,-1047.65,0.00025479,2]
[336849773,1725209478799,-500.0,0.00025479,2]
[336849774,1725209478808,-1789.21,0.00025479,2]
[336849775,1725209478818,-1717.02,0.00025479,2]
[336849776,1725209478827,-500.0,0.00025479,2]
[336849777,1725209478836,-1275.39,0.00025479,2]
[336849778,1725209478846,-500.0,0.00025479,2]
[336849779,1725209478855,-854.9,0.00025479,2]
[336849780,1725209478865,-1204.64,0.00025479,2]
[336849781,1725209478874,-458.16028587,0.00025479,2]
[336849782,1725209478883,-2110.7,0.00025479,2]
[336849783,1725209478893,-792.42,0.00025479,2]
[336849784,1725209478902,-1415.94,0.00025479,2]
[336849785,1725209478911,-667.98,0.00025479,2]
[336849786,1725209478921,-500.0,0.00025479,2]
[336849787,1725209478930,-500.0,0.00025479,2]
[336849788,1725209478939,-500.0,0.00025479,2]
[336849789,1725209478949,-500.0,0.00025479,2]
[336849790,1725209478958,-500.0,0.00025479,2]
[336849791,1725209478967,-884.55,0.00025479,2]
[336849792,1725209478977,-1831.39,0.00025479,2]
[336849793,1725209478986,-500.0,0.00025479,2]
[336849794,1725209478995,-500.0,0.00025479,2]
[336849795,1725209479004,-1388.24,0.00025479,2]
[336849796,1725209479014,-2287.69,0.00025479,2]
[336849797,1725209479024,-1335.6,0.00025479,2]
[336849798,1725209479033,-500.0,0.00025479,2]
[336849799,1725209479042,-559.06,0.00025479,2]
[336849800,1725209479051,-500.0,0.00025479,2]
[336849801,1725209479061,-523.66,0.00025479,2]
[336849802,1725209479070,-1170.97,0.00025479,2]
[336849803,1725209479079,-8054.46,0.00025479,2]
[336849804,1725209479088,-692.53,0.00025479,2]
[336849805,1725209479098,-5495.83,0.00025479,2]
[336849806,1725209479107,-500.0,0.00025479,2]
[336849807,1725209479117,-1803.48,0.00025479,2]
[336849808,1725209479127,-500.0,0.00025479,2]
[336849809,1725209479136,-2079.76,0.00025479,2]
[336849810,1725209479146,-500.0,0.00025479,2]
[336849811,1725209479155,-500.0,0.00025479,2]
[336849812,1725209479165,-210.95682273,0.00025479,2]
[336849813,1725209479174,-500.0,0.00025479,2]
[336849814,1725209479183,-1959.81,0.00025479,2]
[336849815,1725209479193,-1265.99,0.00025479,2]
[336849816,1725209479202,-1995.67,0.00025479,2]
[336849817,1725209479212,-674.22,0.00025479,2]
[336849818,1725209479222,-500.0,0.00025479,2]
[336849819,1725209479231,-4112.56,0.00025479,2]
[336849820,1725209479241,-344.95063862,0.00025479,2]
[336849821,1725209479253,-1641.37,0.00025479,2]
[336849822,1725209479263,-1957.88,0.00025479,2]
[336849823,1725209479272,-500.0,0.00025479,2]
[336849824,1725209479282,-500.0,0.00025479,2]
[336849825,1725209479296,-2698.02,0.00025479,2]
[336849826,1725209479305,-591.74,0.00025479,2]
[336849827,1725209479315,-500.0,0.00025479,2]
[336849828,1725209479324,-500.0,0.00025479,2]
[336849829,1725209479334,-1669.77,0.00025479,2]
[336849830,1725209479344,-904.8,0.00025479,2]
[336849831,1725209479353,-1392.03,0.00025479,2]
[336849832,1725209479363,-1836.43,0.00025479,2]
[336849833,1725209479372,-577.58,0.00025479,2]
[336849834,1725209479382,-517.98,0.00025479,2]
[336849835,1725209479391,-618.15,0.00025479,2]
[336849836,1725209479400,-1311.07,0.00025479,2]
[336849837,1725209479410,-500.0,0.00025479,2]
[336849838,1725209479419,-1499.9,0.00025479,2]
[336849839,1725209479429,-150.112234,0.000256,9]
[336849840,1725209479440,-3000.0,0.00025653,2]
[336849841,1725209479449,-95315.52103771,0.0002573,2]
[336849842,1725209479459,-500.0,0.00025742,2]
[336849843,1725209479468,-726.88,0.00025742,2]
[336849844,1725209479478,-679.29,0.00025742,2]
[336849845,1725209479488,-1476.5,0.00025742,2]
[336849846,1725209479498,-500.0,0.00025753,2]
[336849847,1725209479509,-800.72,0.00025753,2]
[336849848,1725209479518,-500.0,0.00025753,2]
[336849849,1725209479529,-520.45,0.00025753,2]
[336849850,1725209479538,-500.0,0.00025753,2]
[336849851,1725209479547,-158.71404665,0.00025753,2]
[336849852,1725209479558,-500.0,0.00025753,2]
[336849853,1725209479568,-500.0,0.00025753,2]
[336849854,1725209479577,-500.0,0.00025753,2]
[336849855,1725209479587,-500.0,0.00025753,2]
[336849856,1725209479600,-500.0,0.00025753,2]
[336849857,1725209479609,-587.86,0.00025753,2]
[336849858,1725209479619,-620.9,0.00025753,2]
[336849859,1725209479628,-500.0,0.00025753,2]
[336849860,1725209479639,-500.0,0.00025753,2]
[336849861,1725209479649,-500.0,0.00025753,2]
[336849862,1725209479658,-500.0,0.00025753,2]
[336849863,1725209479670,-500.0,0.00025753,2]
[336849864,1725209479680,-500.0,0.00025753,2]
[336849865,1725209479689,-532.99,0.00025753,2]
[336849866,1725209479699,-530.45,0.00025753,2]
[336849867,1725209479709,-560.7,0.00025753,2]
[336849868,1725209479719,-500.0,0.00025753,2]
[336849869,1725209479728,-500.0,0.00025753,2]
[336849870,1725209479738,-500.0,0.00025753,2]
[336849871,1725209479747,-500.0,0.00025753,2]
[336849872,1725209479757,-500.0,0.00025753,2]
[336849873,1725209479767,-1059.37,0.00025753,2]
[336849874,1725209479777,-870.63,0.00025753,2]
[336849875,1725209479786,-500.0,0.00025753,2]
[336849876,1725209479796,-798.55,0.00025753,2]
[336849877,1725209479807,-690.52,0.00025753,2]
[336849878,1725209479816,-503.56710317,0.00025753,2]
[336849879,1725209479826,-500.0,0.00025753,2]
[336849880,1725209479841,-500.0,0.00025753,2]
[336849881,1725209479850,-1159.54,0.00025753,2]
[336849882,1725209479859,-500.0,0.00025753,2]
[336849883,1725209479870,-500.0,0.00025753,2]
[336849884,1725209479880,-500.0,0.00025753,2]
[336849885,1725209479889,-500.0,0.00025753,2]
[336849886,1725209479899,-500.0,0.00025753,2]
[336849887,1725209479909,-500.0,0.00025753,2]
[336849888,1725209479919,-500.0,0.00025753,2]
[336849889,1725209479929,-500.0,0.00025753,2]
[336849890,1725209479938,-500.0,0.00025753,2]
[336849891,1725209479947,-500.0,0.00025753,2]
[336849892,1725209479957,-500.0,0.00025753,2]
[336849893,1725209479967,-500.0,0.00025753,2]
[336849894,1725209479976,-500.0,0.00025753,2]
[336849895,1725209479987,-500.0,0.00025753,2]
[336849896,1725209479997,-500.0,0.00025753,2]
[336849897,1725209480007,-500.0,0.00025753,2]
[336849898,1725209480016,-500.0,0.00025753,2]
[336849899,1725209480026,-500.0,0.00025753,2]
[336849900,1725209480035,-500.0,0.00025753,2]
[336849901,1725209480045,-500.0,0.00025753,2]
[336849902,1725209480054,-3572.54,0.00025753,2]
[336849903,1725209480064,-500.0,0.00025753,2]
[336849904,1725209480074,-500.0,0.00025753,2]
[336849905,1725209480084,-500.0,0.00025753,2]
[336849906,1725209480093,-500.0,0.00025753,2]
[336849907,1725209480103,-500.0,0.00025753,2]
[336849908,1725209480113,-500.0,0.00025753,2]
[336849909,1725209480123,-500.0,0.00025753,2]
[336849910,1725209480133,-500.0,0.00025753,2]
[336849911,1725209480143,-1297.92,0.00025753,2]
[336849912,1725209480152,-500.0,0.00025753,2]
[336849913,1725209480162,-500.0,0.00025753,2]
[336849914,1725209480172,-699.51,0.00025753,2]
[336849915,1725209480181,-500.0,0.00025753,2]
[336849916,1725209480191,-641.15,0.00025753,2]
[336849917,1725209480200,-500.0,0.00025753,2]
[336849918,1725209480212,-673.47,0.00025753,2]
[336849919,1725209480225,-500.0,0.00025753,2]
[336849920,1725209480235,-683.17,0.00025753,2]
[336849921,1725209480352,-501.75064935,0.00025753,2]
[336849922,1725209480370,-500.0,0.00025753,2]
[336849923,1725209480380,-500.0,0.00025753,2]
[336849924,1725209480390,-500.0,0.00025753,2]
[336849925,1725209480399,-500.0,0.00025753,2]
[336849926,1725209480413,-500.0,0.00025753,2]
[336849927,1725209480423,-500.0,0.00025753,2]
[336849928,1725209480433,-494.28056601,0.00025753,2]
[336849929,1725209480443,-500.0,0.00025753,2]
[336849930,1725209480452,-500.0,0.00025753,2]
[336849931,1725209480468,-500.0,0.00025753,2]
[336849932,1725209480478,-500.0,0.00025753,2]
[336849933,1725209480487,-503.7723864,0.00025753,2]
[336849934,1725209480497,-500.0,0.00025753,2]
[336849935,1725209480506,-500.0,0.00025753,2]
[336849936,1725209480516,-500.0,0.00025753,2]
[336849937,1725209480525,-488.67432878,0.00025753,2]
[336849938,1725209480536,-500.0,0.00025753,2]
[336849939,1725209480547,-500.0,0.00025753,2]
[336849940,1725209480558,-500.0,0.00025753,2]
[336849941,1725209480568,-500.0,0.00025753,2]
[336849942,1725209480579,-509.28,0.00025753,2]
[336849943,1725209480591,-500.0,0.00025753,2]
[336849944,1725209480601,-1359.54,0.00025753,2]
[336849945,1725209480611,-500.0,0.00025753,2]
[336849946,1725209480621,-500.0,0.00025753,2]
[336849947,1725209480632,-1091.17,0.00025753,2]
[336849948,1725209480642,-500.0,0.00025753,2]
[336849949,1725209480652,-743.08,0.00025753,2]
[336849950,1725209480662,-500.0,0.00025753,2]
[336849951,1725209480673,-2016.78,0.00025753,2]
[336849952,1725209480684,-500.0,0.00025753,2]
[336849953,1725209480693,-681.24,0.00025753,2]
[336849954,1725209480703,-500.0,0.00025753,2]
[336849955,1725209480717,-826.41,0.00025753,2]
[336849956,1725209480726,-500.0,0.00025753,2]
[336849957,1725209480736,-500.0,0.00025753,2]
[336849958,1725209480746,-500.0,0.00025753,2]
[336849959,1725209480757,-887.01,0.00025753,2]
[336849960,1725209480767,-517.17463084,0.00025753,2]
[336849961,1725209480777,-500.0,0.00025753,2]
[336849962,1725209480787,-1380.3,0.00025753,2]
[336849963,1725209480796,-500.0,0.00025753,2]
[336849964,1725209480806,-500.0,0.00025753,2]
[336849965,1725209480816,-2127.0,0.00025753,2]